Cogmind - Beta 11 @@@ ROGUE MODE // 2022.03.25 @ 16:27:15 Player: Saddlefall Result: Destroyed by Y-54 Guardian with Flak Gun Performance ------------- Evolutions (3) 1500 Regions Visited (6) 1200 Robots Destroyed (127) 635 Value Destroyed (3641) 3641 Prototype IDs (2) 40 Alien Tech Used (0) 0 Bonus (242) 242 TOTAL SCORE: 7258 Bonus ------- High Alert Combat Kills 242 Cogmind --------- Core Integrity 0/700 Matter 233/300 Energy 100/100 System Corruption 7% Temperature Cool (12) Movement Core (50) Location -7/Factory Parts ------- > --- POWER (1) -------- (None) > --- PROPULSION (3) --- (None) > --- UTILITY (7) ------ Improved Signal Interpreter Advanced Targeting Computer Core Analyzer Energy Filter > --- WEAPON (2) ------- (None) > --- INVENTORY (5) ---- Kinecellerator Recalibrator Peak State ------------ > --- POWER ------------ Light Angular Momentum Engine > --- PROPULSION ------- Medium Treads Medium Treads Armored Wheel > --- UTILITY ---------- Improved Heat Sink Improved Cooling System Improved Sensor Array Improved Signal Interpreter Advanced Targeting Computer Core Analyzer Improved Light Armor Plating > --- WEAPON ----------- Heavy Ion Cannon Heavy Assault Rifle > --- INVENTORY -------- Light Deuterium Engine Light Treads Shock Rifle Shock Rifle Rocket Launcher [Rating: 45] Favorites ----------- Power Reinforced Ion Engine Engine Reinforced Ion Engine Propulsion Light Treads Treads Light Treads Leg Aluminum Leg Wheel Wheel Utility High-capacity Storage Unit Device Improved Heat Sink Storage High-capacity Storage Unit Processor Advanced Targeting Computer Protection Improved Light Armor Plating Weapon Small Laser Energy Gun Small Laser Energy Cannon Ion Cannon Ballistic Gun Heavy Assault Rifle Launcher Rocket Launcher Build | -11 -10 -9 -8 -7 -7 -7 ------- Run | Scr Mat Mat Mat Fac Was Fac Slots Evolved 6 | . . 2 2 2 . . Power . | . . . . . . . Propulsion 1 | . . . 1 . . . Utility 5 | . . 2 1 2 . . Weapon . | . . . . . . . Parts Attached 98 | 5 14 22 20 31 . 6 Power 11 | 1 2 3 1 3 . 1 Engine 11 | 1 2 3 1 3 . 1 Core . | . . . . . . . Reactor . | . . . . . . . Propulsion 29 | 1 9 7 5 5 . 2 Treads 18 | . 4 5 5 3 . 1 Leg 5 | 1 2 2 . . . . Wheel 6 | . 3 . . 2 . 1 Hover . | . . . . . . . Flight . | . . . . . . . Utility 31 | 1 2 7 8 12 . 1 Device 16 | . . 5 2 8 . 1 Storage 3 | 1 2 . . . . . Processor 6 | . . 2 2 2 . . Hackware . | . . . . . . . Protection 6 | . . . 4 2 . . Artifact . | . . . . . . . Weapon 27 | 2 1 5 6 11 . 2 Energy Gun 14 | 2 1 4 2 4 . 1 Energy Cannon 5 | . . . 1 4 . . Ballistic Gun 4 | . . 1 2 1 . . Ballistic Cannon . | . . . . . . . Launcher 4 | . . . 1 2 . 1 Special Weapon . | . . . . . . . Impact Weapon . | . . . . . . . Slashing Weapon . | . . . . . . . Piercing Weapon . | . . . . . . . Special Melee Weapon . | . . . . . . . Unidentified Prototypes 1 | . . 1 . . . . Parts Lost 32 | . 3 2 9 6 6 6 Power 5 | . 1 1 1 . 1 1 Propulsion 10 | . 2 . 3 1 2 2 Utility 11 | . . . 4 4 2 1 Weapon 6 | . . 1 1 1 1 2 Highest Loss Streak 6 | . 3 1 3 2 3 6 To Critical Strikes 1 | . . . 1 . . . Average Slot Usage (%) 92 | . 98 98 88 85 68 60 Engine 10 | . 13 10 8 6 3 7 Treads 16 | . 13 18 25 15 7 6 Leg 1 | . . 3 . . . . Wheel 5 | . 13 . . 5 4 . Device 13 | . . 21 10 23 19 7 Storage 7 | . 27 . . . . . Processor 12 | . . 21 13 11 23 23 Protection 3 | . . . 12 5 3 . Energy Gun 15 | . 28 16 5 5 . 6 Energy Cannon 1 | . . . 1 6 3 . Ballistic Gun 3 | . . 4 10 . 3 . Naked Turns . | . . . . . . . Heaviest Build 88 | 13 88 17 35 32 26 14 Greatest Support 63 | 10 10 43 63 60 12 20 Greatest Overweight (x) 8 | 3 8 2 . 2 2 4 Average Overweight (x) 2 | 1 7 . . . . . Largest Inventory Capacity 20 | 8 20 20 5 5 5 5 Average Capacity 9 | 7 19 5 5 5 5 5 Most Carried 20 | 7 20 19 5 5 5 3 Average Carried 8 | 4 17 5 4 4 4 . Final Capacity 20 | 8 20 5 5 5 5 5 Final Carried 17 | 7 17 5 5 5 4 2 Class Distribution -------------------- 62% | Scavenger-Mutant 37% | Mutant Dominant Class ---------------- Mutant | -10/Materials Scavenger-Mutant | -9/Materials Scavenger-Mutant | -8/Materials Scavenger-Mutant | -7/Factory Mutant | -7/Waste Scavenger-Mutant | -7/Factory Resources | -11 -10 -9 -8 -7 -7 -7 ----------- Run | Scr Mat Mat Mat Fac Was Fac Matter Collected 1799 | 150 254 379 428 501 . 87 Remotely . | . . . . . . . Salvage Created 4547 | . 648 1616 1048 1009 . 226 Parts 294 | . 44 104 61 69 . 16 Haulers Intercepted 5 | . 2 3 . . . . Recyclers Shooed 3 | . 1 . . 1 . 1 Parts Field Recycled . | . . . . . . . Retrieved Matter . | . . . . . . . Parts Self-Destructed . | . . . . . . . Prevented . | . . . . . . . Kills | -11 -10 -9 -8 -7 -7 -7 ------- Run | Scr Mat Mat Mat Fac Was Fac Combat Hostiles Destroyed 92 | . 15 28 21 24 . 4 Guns 65 | . 15 28 14 8 . . Cannons 11 | . . . 4 7 . . AOE 16 | . . . 3 9 . 4 Classes Destroyed 15 | . 4 9 . 1 . 1 Worker 6 | . . 1 1 3 . 1 Builder 8 | . . 1 1 5 . 1 Tunneler 1 | . . 1 . . . . Hauler 5 | . 2 3 . . . . Recycler 3 | . . 1 . . . 2 Mechanic 1 | . . 1 . . . . Operator 1 | . . 1 . . . . Watcher 10 | . 2 5 2 1 . . Swarmer 28 | . 6 4 4 11 . 3 Grunt 40 | . 9 13 11 7 . . Brawler 3 | . . 1 1 1 . . Duelist 1 | . . 1 . . . . Sentry 16 | . . 9 5 2 . . Hunter 1 | . . . . . . 1 Programmer 3 | . . . . 3 . . Best Kill Streak 8 | . 3 6 7 8 . 6 Combat Bots Only 7 | . 3 4 7 6 . 4 Max Kills in Single Turn 3 | . 1 2 3 3 . 2 Gunslinging 1 | . . 1 . . . . Exploded 3 | . . . 3 2 . 2 Melee . | . . . . . . . Uniques/NPCs Destroyed . | . . . . . . . Combat | -11 -10 -9 -8 -7 -7 -7 -------- Run | Scr Mat Mat Mat Fac Was Fac Damage Taken 5541 | . 614 795 1686 1485 530 431 Core 1161 | . 157 139 164 185 433 83 Absorbed by Shields . | . . . . . . . Regen/Repaired (Parts) 14 | . . 14 . . . . Core Remaining (%) 68 | 100 37 65 70 . . . Volleys Fired 337 | . 69 91 80 73 3 21 Largest 2 | . 2 2 2 2 2 1 Hottest 122 | . 80 122 84 116 103 50 Shots Fired 610 | . 137 174 153 119 6 21 Gun 517 | . 137 174 134 55 3 14 Cannon 75 | . . . 18 54 3 . Launcher 18 | . . . 1 10 . 7 Special . | . . . . . . . Kinetic 138 | . . 27 89 19 3 . Thermal 400 | . 126 136 63 72 3 . Explosive 18 | . . . 1 10 . 7 Electromagnetic 54 | . 11 11 . 18 . 14 Robot Hit Streak 24 | . 8 24 17 24 2 6 Robot Miss Streak 5 | . 5 3 2 4 1 2 Penetration Max . | . . . . . . . Secondary Targets 1 | . . 1 . . . . Max Gunslinging Chain 1 | . . 1 . . . . Shots Hit Robots 433 | . 81 125 119 90 4 14 Core Hits 197 | . 32 50 46 55 1 13 Critical Kills . | . . . . . . . Critical Parts Destroyed . | . . . . . . . Critical Strikes 14 | . . 8 3 3 . . Burn 14 | . . 8 3 3 . . Melee Attacks . | . . . . . . . Impact . | . . . . . . . Slashing . | . . . . . . . Piercing . | . . . . . . . Sneak Attacks . | . . . . . . . Combat Hostiles . | . . . . . . . Follow-up Attacks . | . . . . . . . Damage Inflicted 9124 | . 925 2465 2179 2866 80 609 Guns 5800 | . 925 2371 1655 632 28 189 Cannons 1699 | . . . 372 1275 52 . Explosions 1611 | . . 94 152 945 . 420 Melee . | . . . . . . . Ramming 14 | . . . . 14 . . Kinetic 1592 | . . 360 997 207 28 . Thermal 5391 | . 817 1954 1030 1505 52 33 Explosive 1484 | . . . 152 945 . 387 Electromagnetic 643 | . 108 151 . 195 . 189 Impact . | . . . . . . . Slashing . | . . . . . . . Piercing . | . . . . . . . Highest Corruption 7 | . 4 7 2 7 7 7 Average Corruption 4 | . 3 5 2 5 7 7 Corruption Purged . | . . . . . . . Corruption Blocked . | . . . . . . . Effects 104 | . 22 43 . 29 5 5 Message Errors 27 | . 7 11 . 6 2 1 Matter Fused 29 | . 4 12 . 9 2 2 Heat Flow Errors 14 | . 3 7 . 4 . . Energy Discharges 13 | . 3 3 . 5 . 2 Data Loss (minor) 9 | . 2 4 . 2 1 . Data Loss (major) 3 | . . 3 . . . . Misfires 2 | . 1 1 . . . . Alerts 1 | . . . . 1 . . Weapon Failures 6 | . 2 2 . 2 . . Overload Shots . | . . . . . . . Overflow Damage 118 | . . 14 22 77 . 5 Projectiles 84 | . . . 22 62 . . Explosions 34 | . . 14 . 15 . 5 Melee . | . . . . . . . Knockbacks . | . . . . . . . Impact . | . . . . . . . Kinetic . | . . . . . . . Secondary . | . . . . . . . Self-Inflicted Damage 148 | . . 67 . 21 . 60 Shots 5 | . . 2 . 1 . 2 Rammed 2 | . . . . 2 . . Targets Rammed 2 | . . . . 2 . . Kicked . | . . . . . . . Crushed . | . . . . . . . Highest Temperature 312 | . 275 312 161 294 . . Average Temperature 58 | . 58 63 35 77 . . Received Heat Transfer 1767 | . 243 267 774 393 . 90 Siege Activations . | . . . . . . . Robots Corrupted . | . . . . . . . Combat Hostiles . | . . . . . . . Parts Fried 3 | . . 2 . . . 1 Impact Corruptions . | . . . . . . . Robots Melted . | . . . . . . . Combat Hostiles . | . . . . . . . Parts Melted 14 | . 1 5 4 4 . . Heat Transferred 10820 | . 1825 4133 2183 2579 100 . Parts Sabotaged . | . . . . . . . Parts Stolen . | . . . . . . . Parts Stripped . | . . . . . . . Power Chain Reactions 3 | . . 2 . . . 1 Missiles Intercepted . | . . . . . . . Alert | -11 -10 -9 -8 -7 -7 -7 ------- Run | Scr Mat Mat Mat Fac Was Fac Peak Influence 548 | . 125 528 548 500 175 247 Initial 249 | . . 16 217 249 175 77 Average 247 | . 59 331 339 372 139 106 Maximum Alert Level 2 | . . 2 2 2 . 1 Low Security (%) 39 | 100 100 16 . . 100 84 Level 1 40 | . . 52 75 62 . 15 Level 2 20 | . . 30 24 37 . . Level 3 . | . . . . . . . Level 4 . | . . . . . . . Level 5 . | . . . . . . . High Security . | . . . . . . . Max Security . | . . . . . . . Squads Dispatched 15 | . 4 1 4 4 . 2 Investigation 5 | . 3 . 1 1 . . Extermination 2 | . . . . 2 . . Reinforcement 4 | . 1 1 . 1 . 1 Assault . | . . . . . . . Garrison 4 | . . . 3 . . 1 Intercept . | . . . . . . . Searches Triggered . | . . . . . . . Construction Impeded 2 | . . . . 1 . 1 Haulers Reinforced . | . . . . . . . Active Scanning Responses . | . . . . . . . Cargo Convoy Interrupts . | . . . . . . . Stealth | -11 -10 -9 -8 -7 -7 -7 --------- Run | Scr Mat Mat Mat Fac Was Fac Distress Signals 6 | . 1 2 2 1 . . Communications Jammed . | . . . . . . . Distress Signals . | . . . . . . . Times Spotted 136 | . 24 40 30 31 6 5 Peak Tracking Total 6 | . 3 4 5 5 6 4 Tactical Retreats 9 | . 1 3 5 . . . Traps | -11 -10 -9 -8 -7 -7 -7 ------- Run | Scr Mat Mat Mat Fac Was Fac Traps Triggered 15 | . 4 4 1 6 . . Indirectly . | . . . . . . . Trap Hack Attempts . | . . . . . . . Triggered . | . . . . . . . Disarmed . | . . . . . . . Reprogrammed . | . . . . . . . Reused . | . . . . . . . Traps Extracted . | . . . . . . . Installed . | . . . . . . . Triggered 1 | . . . . 1 . . Machines | -11 -10 -9 -8 -7 -7 -7 ---------- Run | Scr Mat Mat Mat Fac Was Fac Machines Disabled 5 | . . 3 1 1 . . Max in Single Turn 1 | . . 1 1 1 . . Machines Sabotaged . | . . . . . . . Garrisons Compromised . | . . . . . . . Overloaded Fab Kills . | . . . . . . . Hacking | -11 -10 -9 -8 -7 -7 -7 --------- Run | Scr Mat Mat Mat Fac Was Fac Machines Accessed 6 | . 1 3 . 2 . . Terminals 3 | . 1 2 . . . . Fabricators . | . . . . . . . Repair Stations 1 | . . 1 . . . . Recycling Units . | . . . . . . . Scanalyzers 2 | . . . . 2 . . Garrison Access . | . . . . . . . Total Hacks 12 | . 3 5 . 4 . . Successful 7 | . 2 3 . 2 . . Failed 5 | . 1 2 . 2 . . Catastrophic 1 | . . 1 . . . . Database Lockouts . | . . . . . . . Manual . | . . . . . . . Terminals 6 | . 3 3 . . . . Fabricators . | . . . . . . . Repair Stations 2 | . . 2 . . . . Recycling Units . | . . . . . . . Scanalyzers 4 | . . . . 4 . . Garrison Access . | . . . . . . . Terminal Hacks 3 | . 2 1 . . . . Record 2 | . 2 . . . . . Alert Level 1 | . . 1 . . . . Fabricator Hacks . | . . . . . . . Repair Station Hacks 2 | . . 2 . . . . Scan Component 1 | . . 1 . . . . Repair 1 | . . 1 . . . . Recycling Unit Hacks . | . . . . . . . Scanalyzer 2 | . . . . 2 . . Insert Component 2 | . . . . 2 . . Garrison Access Hacks . | . . . . . . . Unauthorized Hacks . | . . . . . . . Terminals . | . . . . . . . Fabricators . | . . . . . . . Repair Stations . | . . . . . . . Recycling Units . | . . . . . . . Scanalyzers . | . . . . . . . Garrison Access . | . . . . . . . Data Cores Recovered . | . . . . . . . Used . | . . . . . . . Hacking Detections 5 | . 1 2 . 2 . . Full Trace Events 1 | . 1 . . . . . Feedback Events . | . . . . . . . Feedback Blocked . | . . . . . . . Robot Schematics Acquired . | . . . . . . . Robots Built . | . . . . . . . Authchips . | . . . . . . . Time . | . . . . . . . Total Robot Build Rating . | . . . . . . . Part Schematics Acquired . | . . . . . . . Parts Built . | . . . . . . . Authchips . | . . . . . . . Time . | . . . . . . . Total Part Build Rating . | . . . . . . . Parts Repaired 1 | . . 1 . . . . Time 26 | . . 26 . . . . Parts Recycled . | . . . . . . . Recycled Matter . | . . . . . . . Retrieved Matter . | . . . . . . . Retrieved Components . | . . . . . . . Parts Scanalyzed 2 | . . . . 2 . . Part Schematics Acquired . | . . . . . . . Parts Damaged . | . . . . . . . Bothacking | -11 -10 -9 -8 -7 -7 -7 ------------ Run | Scr Mat Mat Mat Fac Was Fac Used RIF Installer . | . . . . . . . Robots Hacked . | . . . . . . . Non-combat . | . . . . . . . Combat . | . . . . . . . Robot Hacks Applied . | . . . . . . . Relay Couplers Released . | . . . . . . . Fabnet Peak Effective % . | . . . . . . . Robots Rewired . | . . . . . . . Allies Hacked . | . . . . . . . Hacks Repelled . | . . . . . . . Allies | -11 -10 -9 -8 -7 -7 -7 -------- Run | Scr Mat Mat Mat Fac Was Fac Total Allies 1 | . . . . . 1 . Largest Group 1 | . . . . . 1 . Highest-Rated Group 31 | . . . . . 31 . Highest-Rated Ally 31 | . . . . . 31 . Total Orders . | . . . . . . . Ally Attacks 11 | . . . . . 11 . Total Damage 189 | . . . . . 189 . Kills . | . . . . . . . Allies Corrupted . | . . . . . . . Allies Melted . | . . . . . . . Intel | -11 -10 -9 -8 -7 -7 -7 ------- Run | Scr Mat Mat Mat Fac Was Fac Robot Analysis Total . | . . . . . . . Derelict Logs Recovered . | . . . . . . . Drone Launches . | . . . . . . . Drone Recoveries . | . . . . . . . Exploration | -11 -10 -9 -8 -7 -7 -7 ------------- Run | Scr Mat Mat Mat Fac Was Fac Turns Passed 6664 | 87 1861 1812 1024 1451 178 251 Spaces Moved 3119 | 42 796 890 397 754 147 93 Core 74 | 8 . 1 . . 53 12 Treads 1647 | . . 719 397 455 . 76 Legs 221 | 34 17 170 . . . . Wheels 1177 | . 779 . . 299 94 5 Hover . | . . . . . . . Flight . | . . . . . . . Fastest Speed 50 | 50 155 120 160 105 50 95 Average Speed 158 | 174 192 152 160 143 87 163 Slowest Speed 250 | 200 200 160 160 240 120 250 Overloaded Moves . | . . . . . . . Propulsion Burnouts . | . . . . . . . Robots Hopped . | . . . . . . . Cave-ins Triggered . | . . . . . . . Exploration Rate (%) 45 | 4 99 87 31 20 73 3 Regions Visited 6 Branch Regions . Pre-discovered Areas . | . . . . . . . Known Exits Taken 1 | . . 1 . . . . Unknown Exits Taken 3 | 1 1 . 1 . . . Scrap Searched . | . . . . . . . Spaces Dug 24 | . . . . . . 24 Terrain Destroyed 137 | . . 6 9 56 . 66 Melee . | . . . . . . . Projectile 3 | . . . 1 2 . . AOE 134 | . . 6 8 54 . 66 Terrain Rammed . | . . . . . . . Walls Destroyed . | . . . . . . . Machines Disabled . | . . . . . . . Actions | -11 -10 -9 -8 -7 -7 -7 --------- Run | Scr Mat Mat Mat Fac Was Fac Total 4222 | 54 994 1176 633 1005 190 170 Wait 527 | . 78 140 116 106 40 47 Move 3114 | 41 795 889 396 754 146 93 Hop . | . . . . . . . Pick Up 61 | 8 21 10 8 11 . 3 Fast Attach 56 | 4 3 14 14 20 . 1 Attach 42 | 1 11 8 6 11 . 5 Detach 25 | . 8 4 4 9 . . Swap . | . . . . . . . Drop 58 | . 9 20 9 19 1 . Fire 337 | . 69 91 80 73 3 21 Melee . | . . . . . . . Ram 1 | . . . . 1 . . Kick . | . . . . . . . Crush 1 | . . . . 1 . . Escape Stasis . | . . . . . . . Rewire . | . . . . . . . Trap . | . . . . . . . Miscellaneous . | . . . . . . . Route ------- -11/Scrapyard -10/Materials (discovered 5 exits: *Mat x3 / [*Min x2]) -9/Materials (discovered 3 exits: *Mat x3) -8/Materials -7/Factory -7/Waste -7/Factory History --------- Turn | Location | Event 27 | -11/Scrapyard | Discovered new exit (range 15) 88 | -11/Scrapyard | Entered Materials 265 | -10/Materials | Discovered new exit (range 15) 334 | -10/Materials | Build established: Mutant 531 | -10/Materials | Discovered new exit (range 15) 901 | -10/Materials | Discovered new exit (range 14) 1104 | -10/Materials | Discovered new exit (range 16) 1648 | -10/Materials | Discovered new exit (range 16) 1808 | -10/Materials | Core integrity fell below 50% 1863 | -10/Materials | Lost 3 parts (1p2n) 1949 | -10/Materials | Entered another Materials area 1949 | -9/Materials | Evolved 2 slots: Utility x2 2544 | -9/Materials | Build established: Scavenger-Mutant 2552 | -9/Materials | Repaired Sensor Array 3107 | -9/Materials | Discovered new exit (range 15) 3301 | -9/Materials | Discovered new exit (range 15) 3720 | -9/Materials | Discovered new exit (range 16) 3759 | -9/Materials | Identified exit to Materials 3761 | -9/Materials | Entered another Materials area 3761 | -8/Materials | Evolved 2 slots: Propulsion x1, Utility x1 3978 | -8/Materials | Lost 3 parts (3u) 4325 | -8/Materials | Garrison activated, responded to threat 4579 | -8/Materials | Discovered new exit (range 16) 4695 | -8/Materials | Destroyed 7 combat bots 4700 | -8/Materials | Lost 3 parts (1p1n1u) 4785 | -8/Materials | Entered Factory 4785 | -7/Factory | Evolved 2 slots: Utility x2 5537 | -7/Factory | Discovered new exit (range 15) 6236 | -7/Factory | Sucked down chute 6236 | -7/Factory | Entered Waste 6237 | -7/Waste | Met a frightened Derelict 6269 | -7/Waste | Spotted C-40 Crusher 6277 | -7/Waste | Spotted C-40 Crusher 6281 | -7/Waste | Spotted C-40 Crusher 6314 | -7/Waste | Crushed by Compactor (1 part destroyed, 2 dropped) 6331 | -7/Waste | Spotted C-40 Crusher 6345 | -7/Waste | Lost 3 parts (1p1u1w) 6347 | -7/Waste | Crushed by Compactor (1 part destroyed, 1 dropped) 6349 | -7/Waste | Spotted C-40 Crusher 6356 | -7/Waste | Spotted C-40 Crusher 6385 | -7/Waste | Core integrity fell below 50% 6398 | -7/Waste | Core integrity fell below 20% 6405 | -7/Waste | Discovered new exit (range 14) 6413 | -7/Waste | Identified exit to Factory 6414 | -7/Waste | Entered Factory 6533 | -7/Factory | Garrison activated, responded to threat 6665 | -7/Factory | Destroyed by Y-54 Guardian with Flak Gun Last Messages --------------- 06602_ ALERT: All DSF locations entering lockdown mode. 06602_ Acquired Wheel. 06606_ Slug penetrates Wall. 06606_ R-06 Scavenger collects Welding Torch. 06614_ Slug penetrates Door. 06622_ H-55 Commando destroyed. 06625_ S-27 Virus destroyed. 06625_ Destroyed Wheel. 06627_ R-06 Scavenger destroyed. 06629_ S-27 Virus destroyed. 06631_ Wheel destroyed. 06634_ Rocket Launcher destroyed. 06634_ Lgt. Treads destroyed. 06636_ The unstable cave ceiling collapses. 06636_ 3 Matter crushed. 06645_ Acquired Energy Filter. 06651_ Acquired Recalibrator. 06658_ Shock Rifle destroyed. 06661_ Imp. Cooling System destroyed. 06665_ Lgt. Deuterium Engine destroyed. Map ----- +----------------------------------------------------+ | ?????????????????????????????????????????????????? | | ?????????????????????????????????????????????????? | | ?????????????????????????????????????????????????? | | ?????????????????????????????????????????????????? | | ?????????????????????????????????????????????????? | | ?????????????????????????????????????????????????? | | ?????????????????????????????????????????????????? | | ?????????????????????????????????????????????????? | | ?????????????????????????????????????????????????? | | ?????????????????????????????????????????????????? | | ?????????????????????????????????????????????????? | | ?????????????????????????????????????????????????? | | ?????????????????????????????????????????????????? | | ?????????????????????????????????????????????????? | | ?????????????????????????????????????????????????? | | ?????????????????????????????????????????????????? | | ????????????????????#????????????????????????????? | | ????????????????????# ???????????????????????????? | | ????????????????????# ???????????????????????????? | | ????????????????????# ??????????????????????????? | | ????????????????????# ??###########?????????????? | | ????????????????????# ?# #?????????????? | | ????????????????????# ?# #?????????????? | | ????????????????????# # """ #?????????????? | | ???????????????###+## # """ #?????????????? | | ?????????? @ !! """ #?????????????? | | ?????????? ### ! #?????????????? | | ?????????? !%% ]? ??# !#?????????????? | | ??????????? ??? ]? #?# u #?????????????? | | ??????????????????? #?####Y# #####????????????? | | ??????????????????? #?## #????????????? | | ???????????????????? #?# # """????????? | | ????????????????????? #?# """????????? | | ?????????????????????# #### ? | | ?????????????????????# #### # *% ########?# | | ?????????????????????# =%= #????????# | | ?????????????????????# ### * #????????# | | ?????????????????????# ### # ##????????# | | ?????????????????????# #?# # # #?????????# | | ?????????????????????# #? # ### #?????????# | | ?????????????????????# #? !# ?# ########?## | | ?????????????????????#+## # ?# | | ????????????????????? * ? ? ###/########### | | ????????????????????? ? ? # # | | ????????????????????? ? ## # | | ????????????????????? ?? ? ?# # | | ????????????????????? ??? ????# """ """ # | | ????????????????????? ??? ????# """ """ # | | ????????????????????? ????????# """ """ + | | ????????????????????? ????????# # | +----------------------------------------------------+ Best States ------------- Heat Dissipation 75 Energy Generation 18 Energy Capacity 265 Matter Stores 300 Matter Capacity 300 Sight Range 16 Robot Scan Range 15 Terrain Scan Density 10 ECM Strength 1 Armor Coverage 750 Power Shielding 33 Evasion (%) 55 Targeting Accuracy 8 Core Analysis 6 Recoil Reduction 3 Energy Filtering 30 Item Schematics ----------------- None Robot Schematics ------------------ None Fabricated ------------ Nothing Alien Tech Used ----------------- None Achievements -------------- I Spy Safety First Challenges ------------ None Game ------ Seed DrainedShrapnelDerivative Manual? 0 Play Time 01:25:23 Cumulative 12.4 hours Start 2022.03.25 @ 14:17:10 End 2022.03.25 @ 16:27:15 Sessions 3 Manual Loads 0 Difficulty Rogue Special Mode None Game No. 19 Rogue 19 Adventurer 0 Explorer 0 Win Type - Total 0 Types 0/0/0/0/0/0/0/0/0 Lore% 13 Gallery% 16 Achievement% 12 Wizard Run 0 Options --------- ASCII 0 Keyboard 1 Movement Numpad Keybinds 0 Fullscreen 2 Font 18/TerminusBold Map View 76x50 Tactical HUD 1 Map Filters NONE Filters NONE Steam 1 RUN: d4cae8f1-e1ea-4a46-8555-d578fb045ada